bitfinex/quotes_BTCUSD_20240602
["timestamp","ask_amount","ask_price","bid_price","bid_amount"]
[1717291785358,0.2436497,67885.0,67884.0,1.08709823]
[1717291788808,0.2436497,67885.0,67884.0,1.02329823]
[1717291789072,0.2436497,67885.0,67884.0,1.08709823]
[1717291789340,0.25289743,67885.0,67884.0,1.08709823]
[1717291789545,0.2436497,67885.0,67884.0,1.08709823]
[1717291791848,0.2436497,67885.0,67884.0,1.08709829]
[1717291795641,0.0936497,67885.0,67884.0,1.08709829]
[1717291795847,0.10289743,67885.0,67884.0,1.08709829]
[1717291796667,0.0936497,67885.0,67884.0,1.08709829]
[1717291803897,0.0936497,67885.0,67884.0,0.93423802]
[1717291804086,0.0936497,67885.0,67884.0,1.08709829]
[1717291805960,0.0936497,67885.0,67884.0,0.98997818]
[1717291806163,0.0936497,67885.0,67884.0,1.08709829]
[1717291807569,0.0936497,67885.0,67884.0,1.02329829]
[1717291807730,0.0936497,67885.0,67884.0,1.08709829]
[1717291810195,0.2631497,67885.0,67884.0,1.02329829]
[1717291810539,0.2631497,67885.0,67884.0,0.87302038]
[1717291810724,0.2631497,67885.0,67884.0,0.72016011]
[1717291811060,0.38948775,67885.0,67884.0,0.72016011]
[1717291811260,0.34525579,67885.0,67884.0,0.72016011]
[1717291811389,0.34525579,67885.0,67884.0,0.62754]
[1717291811390,0.49256279,67885.0,67884.0,0.62754]
[1717291811610,0.48956465,67885.0,67884.0,0.61654]
[1717291812082,0.49156465,67885.0,67884.0,0.63254]
[1717291812449,0.48656465,67885.0,67884.0,0.58854]
[1717291812658,0.48956465,67885.0,67884.0,0.61654]
[1717291812838,0.57191259,67885.0,67884.0,0.61854]
[1717291813045,0.55291259,67885.0,67884.0,0.5]
[1717291813260,0.48656465,67885.0,67884.0,0.5]
[1717291813463,0.55656465,67885.0,67884.0,0.505]
[1717291813679,0.60073565,67885.0,67884.0,0.505]
[1717291814300,0.55656465,67885.0,67884.0,0.505]
[1717291817580,0.5658722,67885.0,67884.0,0.505]
[1717291821364,0.58373484,67885.0,67884.0,0.505]
[1717291823006,0.64753484,67885.0,67884.0,0.505]
[1717291823705,0.58373484,67885.0,67884.0,0.505]
[1717291826562,0.87834984,67885.0,67884.0,0.505]
[1717291827483,0.87842065,67885.0,67884.0,0.505]
[1717291842295,1.01484689,67885.0,67884.0,0.505]
[1717291846149,1.01163025,67885.0,67884.0,0.505]
[1717291848896,1.06243025,67885.0,67884.0,0.505]
[1717291849093,1.35704525,67885.0,67884.0,0.505]
[1717291853270,1.40112735,67885.0,67884.0,0.505]
[1717291854081,1.42412735,67885.0,67884.0,0.505]
[1717291854242,1.46820946,67885.0,67884.0,0.505]
[1717291854441,1.38004525,67885.0,67884.0,0.505]
[1717291855312,1.49025052,67885.0,67884.0,0.505]
[1717291856104,1.38004525,67885.0,67884.0,0.505]
[1717291857889,1.37699477,67885.0,67884.0,0.505]
[1717291861897,1.31319477,67885.0,67884.0,0.505]
[1717291862111,1.37699477,67885.0,67884.0,0.505]
[1717291863590,1.31319477,67885.0,67884.0,0.505]
[1717291863812,1.01857977,67885.0,67884.0,0.505]
[1717291864025,1.37699477,67885.0,67884.0,0.505]
[1717291864260,1.54137139,67885.0,67884.0,0.505]
[1717291868240,1.24267139,67885.0,67884.0,0.505]
[1717291868447,0.69231569,67885.0,67884.0,0.84212011]
[1717291868640,0.62600985,67885.0,67884.0,0.84212011]
[1717291869221,0.62600985,67885.0,67884.0,0.7495]
[1717291869421,0.62600985,67885.0,67884.0,0.84212011]
[1717291870562,0.63049132,67885.0,67884.0,0.84212011]
[1717291871518,0.7188991,67885.0,67884.0,0.84212011]
[1717291872687,0.7188991,67885.0,67884.0,0.7495]
[1717291873621,0.71328052,67885.0,67884.0,0.7495]
[1717291873796,0.71328052,67885.0,67884.0,0.6695]
[1717291873998,0.71328052,67885.0,67884.0,0.505]
[1717291879548,0.71328052,67885.0,67884.0,0.6662]
[1717291880521,0.71328052,67885.0,67884.0,0.75882011]
[1717291881103,0.71328052,67885.0,67884.0,0.76332011]
[1717291884244,0.71532966,67885.0,67884.0,0.76332011]
[1717291884922,0.71532966,67885.0,67884.0,0.75882011]
[1717291885491,0.71532917,67885.0,67884.0,0.75882011]
[1717291886105,0.6269232,67885.0,67884.0,0.75882011]
[1717291886667,0.71532917,67885.0,67884.0,0.75882011]
[1717291889295,0.71532917,67885.0,67884.0,0.76332011]
[1717291891302,0.6269232,67885.0,67884.0,0.76332011]
[1717291891926,0.6269232,67885.0,67884.0,0.59762011]
[1717291897162,0.6269232,67885.0,67884.0,0.60212011]
[1717291897363,0.39861073,67885.0,67884.0,0.60212011]
[1717291897565,0.39861073,67885.0,67884.0,0.92213011]
[1717291897784,0.3323082,67885.0,67884.0,0.92213011]
[1717291898179,0.32782915,67885.0,67884.0,0.92213011]
[1717291898382,0.35076334,67885.0,67884.0,0.92213011]
[1717291899364,0.3506214,67885.0,67884.0,0.92213011]
[1717291903757,0.35060024,67885.0,67884.0,0.92213011]
[1717291909286,0.25877728,67885.0,67884.0,0.92213011]
[1717291909490,0.35146303,67885.0,67884.0,0.92213011]
[1717291911397,0.20415603,67885.0,67884.0,1.13170802]
[1717291911795,0.11147028,67885.0,67884.0,1.13170802]
[1717291912910,0.07547028,67885.0,67884.0,1.12970802]
[1717291913111,0.05253609,67885.0,67884.0,1.12970802]
[1717291913311,0.0462497,67885.0,67884.0,1.14870802]
[1717291913532,0.0432497,67885.0,67884.0,1.12970802]
[1717291913737,0.0092497,67885.0,67884.0,1.12670802]
[1717291913958,0.0122497,67885.0,67884.0,1.14570802]
[1717291914186,0.0142497,67885.0,67884.0,1.16270802]
[1717291914590,0.0122497,67885.0,67884.0,1.14570802]
[1717291914999,0.0152497,67885.0,67884.0,1.17870802]
[1717291920868,0.0152497,67885.0,67884.0,1.11490802]
[1717291921070,0.0152497,67885.0,67884.0,1.17870802]
[1717291924311,0.0152497,67885.0,67884.0,1.1328229]
[1717291924533,0.0152497,67885.0,67884.0,1.1966229]
[1717291932437,0.0152497,67885.0,67884.0,1.1328229]
[1717291932651,0.0152497,67885.0,67884.0,1.1966229]
[1717291933916,0.0152497,67885.0,67884.0,1.4439329]
[1717291936815,0.0152497,67885.0,67884.0,1.3439329]
[1717291937252,0.0152497,67885.0,67884.0,1.4439329]
[1717291937863,0.0152497,67885.0,67884.0,1.3439329]
[1717291938704,0.0152497,67885.0,67884.0,1.2801329]
[1717291938935,0.0152497,67885.0,67884.0,1.3439329]
[1717291942060,0.0152497,67885.0,67884.0,1.2801329]
[1717291942262,0.0152497,67885.0,67884.0,1.3439329]
[1717291944050,0.0152497,67885.0,67884.0,1.05408552]
[1717291944286,0.0152497,67885.0,67884.0,1.11788552]
[1717291945039,0.0152497,67885.0,67884.0,1.05408552]
[1717291945250,0.02456222,67885.0,67884.0,1.11788552]
[1717291946677,0.02456222,67885.0,67884.0,1.11788563]
[1717291947106,0.1793497,67885.0,67884.0,0.9650229]
[1717291947314,0.26886222,67885.0,67884.0,0.9650229]
[1717291948160,0.26886222,67885.0,67884.0,0.94710802]
[1717291948796,0.2595497,67885.0,67884.0,0.94710802]
[1717291949194,0.26886197,67885.0,67884.0,0.94710802]
[1717291951415,0.26886197,67885.0,67884.0,0.84998791]
[1717291952033,0.26886197,67885.0,67884.0,0.94710802]
[1717291952816,0.26886197,67885.0,67884.0,0.88330802]
[1717291953045,0.26886197,67885.0,67884.0,0.94710802]
[1717291965486,0.02456197,67885.0,67884.0,0.88330802]
[1717291965702,0.10176197,67885.0,67884.0,0.94710802]
[1717291972841,0.02456197,67885.0,67884.0,0.94710802]
[1717291973050,0.0152497,67885.0,67884.0,0.94710802]
[1717291973245,0.02455936,67885.0,67884.0,0.94710802]
[1717291978501,0.02455936,67885.0,67884.0,0.88330802]
[1717291978762,0.02455936,67885.0,67884.0,0.94710802]
[1717291978968,0.05700084,67885.0,67884.0,0.94710802]
[1717291979728,0.02455936,67885.0,67884.0,0.94710802]
[1717291984796,0.02455936,67885.0,67884.0,0.88330802]
[1717291984973,0.02455936,67885.0,67884.0,0.94710802]
[1717291986375,0.02455936,67885.0,67884.0,1.02354325]
[1717291986755,0.02455936,67885.0,67884.0,1.09944325]
[1717291986915,0.0152497,67885.0,67884.0,1.09944325]
[1717291989261,0.0152497,67885.0,67884.0,1.25034325]
[1717291989696,0.0152497,67885.0,67884.0,1.5932119]
[1717291991036,0.0152497,67885.0,67884.0,1.59320732]
[1717291992753,0.0152497,67885.0,67884.0,1.59320733]
[1717291993395,0.0152497,67885.0,67884.0,1.5167721]
[1717291993620,0.0152497,67885.0,67884.0,1.59320414]
[1717291994520,0.0152497,67885.0,67884.0,1.44034006]
[1717291999814,0.0152497,67885.0,67884.0,1.59320383]
[1717292000462,0.0152497,67885.0,67884.0,1.52940383]
[1717292000666,0.0152497,67885.0,67884.0,1.59320383]
[1717292002269,0.0152497,67885.0,67884.0,1.44034006]
[1717292002467,0.0152497,67885.0,67884.0,1.59320406]
[1717292004268,0.0152497,67885.0,67884.0,1.59345906]
[1717292008791,0.0152497,67885.0,67884.0,1.44059506]
[1717292009010,0.0152497,67885.0,67884.0,1.59345841]
[1717292009949,0.0152497,67885.0,67884.0,1.5934584]
[1717292011811,0.0152497,67885.0,67884.0,1.5296584]
[1717292012019,0.0152497,67885.0,67884.0,1.5934584]
[1717292013439,0.0152497,67885.0,67884.0,1.7407684]
[1717292014835,0.0152497,67885.0,67884.0,1.74076839]
[1717292020023,0.0152497,67885.0,67884.0,1.74076801]
[1717292025899,0.0152497,67885.0,67884.0,1.58790468]
[1717292026102,0.0152497,67885.0,67884.0,1.7407674]
[1717292027090,0.0152497,67885.0,67884.0,1.8407674]
[1717292028285,0.0152497,67885.0,67884.0,1.84076709]
[1717292029109,0.0152497,67885.0,67884.0,1.74076709]
[1717292033373,0.0152497,67885.0,67884.0,1.78489412]
[1717292034577,0.0152497,67885.0,67884.0,1.98599412]
[1717292034773,0.0152497,67885.0,67884.0,1.94186709]
[1717292035182,0.0152497,67885.0,67884.0,2.00805764]
[1717292036268,0.0152497,67885.0,67884.0,1.94186709]
[1717292036463,0.0152497,67885.0,67884.0,1.84186709]
[1717292036674,0.0152497,67885.0,67884.0,1.94186709]
[1717292039103,0.0152497,67885.0,67884.0,1.84186709]
[1717292039703,0.0152497,67885.0,67884.0,1.94186709]
[1717292040653,0.0152497,67885.0,67884.0,1.84186709]
[1717292041010,0.0152497,67885.0,67884.0,1.94186709]
[1717292041413,0.0152497,67885.0,67884.0,1.77806709]
[1717292041614,0.0152497,67885.0,67884.0,1.84186709]
[1717292041817,0.0152497,67885.0,67884.0,1.94186709]
[1717292043453,0.0152497,67885.0,67884.0,1.87806709]
[1717292043705,0.0152497,67885.0,67884.0,1.94186709]
[1717292045812,0.0152497,67885.0,67884.0,1.84186048]
[1717292047792,0.0152497,67885.0,67884.0,1.84185718]
[1717292048635,0.0152497,67885.0,67884.0,1.77805718]
[1717292048829,0.0152497,67885.0,67884.0,1.84185718]
[1717292049985,0.0152497,67885.0,67884.0,1.77805718]
[1717292050186,0.0152497,67885.0,67884.0,1.84185718]
[1717292050389,0.0152497,67885.0,67884.0,1.76485718]
[1717292050574,0.0152497,67885.0,67884.0,1.61395718]
[1717292051717,0.0152497,67885.0,67884.0,1.45015718]
[1717292051943,0.2573497,67885.0,67884.0,1.51395718]
[1717292054437,0.2573497,67885.0,67884.0,1.30284718]
[1717292054987,0.2573497,67885.0,67884.0,1.36664718]
[1717292055237,0.2573497,67885.0,67884.0,1.29834718]
[1717292055453,0.2573497,67885.0,67884.0,1.36664718]
[1717292056008,0.2063497,67885.0,67884.0,1.30284718]
[1717292056415,0.2063497,67885.0,67884.0,1.36664718]
[1717292057216,0.2063497,67885.0,67884.0,1.36665011]
[1717292058370,0.2063497,67885.0,67884.0,1.30285011]
[1717292058574,0.2063497,67885.0,67884.0,1.15248271]
[1717292058781,0.2063497,67885.0,67884.0,1.17665011]
[1717292059140,0.2063497,67885.0,67884.0,1.17215011]
[1717292059141,0.23860143,67885.0,67884.0,1.17215011]
[1717292059344,0.21567084,67885.0,67884.0,1.17215011]
[1717292059516,0.21567084,67885.0,67884.0,1.0957349]
[1717292059661,0.2486353,67885.0,67884.0,1.1002349]
[1717292059861,0.2486353,67885.0,67884.0,1.10023457]
[1717292060071,0.21567084,67885.0,67884.0,1.10023457]
[1717292060272,0.21567084,67885.0,67884.0,0.94736302]
[1717292060968,0.21567084,67885.0,67884.0,0.78644291]
[1717292060969,0.2446872,67885.0,67884.0,0.78644291]
[1717292061196,0.21567084,67885.0,67884.0,0.94286302]
[1717292065390,0.21567084,67885.0,67884.0,0.94736302]
[1717292065853,0.21567084,67885.0,67884.0,0.94286302]
[1717292067071,0.21567084,67885.0,67884.0,0.94736302]
[1717292067835,0.36297784,67885.0,67884.0,0.94286302]
[1717292070271,0.36297784,67885.0,67884.0,0.87906302]
[1717292074207,0.36297784,67885.0,67884.0,0.88356302]
[1717292077969,0.36297784,67885.0,67884.0,0.87906302]
[1717292079054,0.36297784,67885.0,67884.0,0.88356302]
[1717292079219,0.36297784,67885.0,67884.0,0.87906302]
[1717292080236,0.36297784,67885.0,67884.0,0.88356302]
[1717292081675,0.36297784,67885.0,67884.0,0.87906302]
[1717292092633,0.36297784,67885.0,67884.0,0.640665]
[1717292094360,0.36297784,67885.0,67884.0,0.73328511]
[1717292100801,0.36297784,67885.0,67884.0,0.640665]
[1717292101430,0.95220784,67885.0,67884.0,0.552255]
[1717292101644,1.01010766,67885.0,67884.0,0.552255]
[1717292102306,1.05428758,67885.0,67884.0,0.552255]
[1717292102917,1.01010766,67885.0,67884.0,0.552255]
[1717292103162,1.05429104,67885.0,67884.0,0.552255]
[1717292103374,1.05428703,67885.0,67884.0,0.552255]
[1717292103587,1.05428703,67885.0,67884.0,0.519255]
[1717292103785,1.05428703,67885.0,67884.0,0.500255]
[1717292103895,1.05528703,67885.0,67884.0,0.505255]
[1717292104331,1.01310766,67885.0,67884.0,0.531255]
[1717292104529,1.01310766,67885.0,67884.0,0.533255]
[1717292104760,1.01010766,67885.0,67884.0,0.502255]
[1717292104960,1.01010766,67885.0,67884.0,0.507255]
[1717292105159,1.01110766,67885.0,67884.0,0.507255]
[1717292106516,0.73942844,67885.0,67884.0,0.507255]
[1717292106718,0.68152862,67885.0,67884.0,0.507255]
[1717292107879,0.95320784,67885.0,67884.0,0.507255]
[1717292108150,0.97614361,67885.0,67884.0,0.507255]
[1717292108900,0.68152861,67885.0,67884.0,0.507255]
[1717292110617,0.97614361,67885.0,67884.0,0.507255]
[1717292111480,0.95320784,67885.0,67884.0,0.507255]
[1717292111848,0.97620784,67885.0,67884.0,0.507255]
[1717292112062,1.04000784,67885.0,67884.0,0.507255]
[1717292112751,1.09885989,67885.0,67884.0,0.507255]
[1717292113959,1.09785989,67885.0,67884.0,0.500255]
[1717292114401,1.22005739,67885.0,67884.0,0.504255]
[1717292114587,1.22005739,67885.0,67884.0,0.502255]
[1717292114758,1.19405739,67885.0,67884.0,0.500255]
[1717292114963,1.23105739,67885.0,67884.0,0.502255]
[1717292115164,1.26805739,67885.0,67884.0,0.505255]
[1717292115378,1.20185989,67885.0,67884.0,0.505255]
[1717292115828,1.20169611,67885.0,67884.0,0.505255]
[1717292117253,1.64208902,67885.0,67884.0,0.505255]
[1717292117457,1.84208902,67885.0,67884.0,0.505255]
[1717292117667,1.9523941,67885.0,67884.0,0.505255]
[1717292117868,1.84208902,67885.0,67884.0,0.505255]
[1717292119580,1.95234935,67885.0,67884.0,0.505255]
[1717292119750,2.30234935,67885.0,67884.0,0.505255]
[1717292120377,2.19208902,67885.0,67884.0,0.505255]
[1717292121348,2.28027197,67885.0,67884.0,0.505255]
[1717292121707,2.33789456,67885.0,67884.0,0.505255]
[1717292121999,2.39244212,67885.0,67884.0,0.502255]
[1717292122186,2.32544212,67885.0,67884.0,0.500255]
[1717292122426,2.36244212,67885.0,67884.0,0.503255]
[1717292123601,2.39844212,67885.0,67884.0,0.503255]
[1717292123824,2.36244212,67885.0,67884.0,0.503255]
[1717292124159,2.27089456,67885.0,67884.0,0.503255]
[1717292124313,2.26989456,67885.0,67884.0,0.500255]
[1717292124530,2.16008902,67885.0,67884.0,0.500255]
[1717292127225,2.25138623,67885.0,67884.0,0.500255]
[1717292127692,2.16008902,67885.0,67884.0,0.500255]
[1717292128277,2.15897936,67885.0,67884.0,0.500255]
[1717292128481,2.25048536,67885.0,67884.0,0.500255]
[1717292129025,2.15897936,67885.0,67884.0,0.500255]
[1717292129224,2.26909463,67885.0,67884.0,0.500255]
[1717292129441,2.25018013,67885.0,67884.0,0.500255]
[1717292130258,2.36029497,67885.0,67884.0,0.500255]
[1717292132296,2.65490997,67885.0,67884.0,0.500255]
[1717292134733,2.54479513,67885.0,67884.0,0.500255]
[1717292144085,2.53979513,67885.0,67884.0,0.500255]
[1717292144553,2.67204504,67885.0,67884.0,0.500255]
[1717292145429,2.53979513,67885.0,67884.0,0.500255]
[1717292145855,2.67209968,67885.0,67884.0,0.500255]
[1717292146070,2.60829968,67885.0,67884.0,0.500255]
[1717292146251,2.67209968,67885.0,67884.0,0.500255]
[1717292147164,2.66856357,67885.0,67884.0,0.500255]
[1717292150317,2.53625902,67885.0,67884.0,0.500255]
[1717292154192,2.53641512,67885.0,67884.0,0.500255]
[1717292161351,2.68535701,67885.0,67884.0,0.500255]
[1717292162500,2.53641512,67885.0,67884.0,0.500255]
[1717292163649,2.83103012,67885.0,67884.0,0.500255]
[1717292164280,2.53641512,67885.0,67884.0,0.500255]
[1717292165539,2.68222066,67885.0,67884.0,0.500255]
[1717292166200,2.97683566,67885.0,67884.0,0.500255]
[1717292166417,3.12606105,67885.0,67884.0,0.500255]
[1717292167007,3.09006105,67885.0,67884.0,0.500255]
[1717292167756,3.05406105,67885.0,67884.0,0.500255]
[1717292167887,3.12706105,67885.0,67884.0,0.500255]
[1717292168634,2.94525551,67885.0,67884.0,0.500255]
[1717292169253,2.98225551,67885.0,67884.0,0.500255]
[1717292170249,3.00903383,67885.0,67884.0,0.500255]
[1717292172143,0.294759,67852.0,67850.0,0.09354862]
[1717292172354,0.294759,67852.0,67850.0,0.00092851]
[1717292172577,0.294759,67852.0,67850.0,0.09354862]
[1717292172797,0.294759,67852.0,67850.0,0.33724862]
[1717292172981,0.442138,67852.0,67851.0,0.2437]
[1717292173677,0.445138,67852.0,67851.0,0.2437]
[1717292174290,0.450138,67852.0,67851.0,0.2447]
[1717292174930,0.744897,67852.0,67851.0,0.2447]
[1717292175082,0.741897,67852.0,67851.0,0.2447]
[1717292175263,0.80869735,67852.0,67851.0,0.2467]
[1717292176472,0.80569735,67852.0,67851.0,0.2467]
[1717292176674,0.80569735,67852.0,67851.0,0.33632011]
[1717292176675,0.80069735,67852.0,67851.0,0.33632011]
[1717292176945,0.80269735,67852.0,67851.0,0.34182011]
[1717292177251,0.739897,67852.0,67851.0,0.2457]
[1717292177366,0.736897,67852.0,67851.0,0.2437]
[1717292177599,0.80248576,67852.0,67851.0,0.2437]
[1717292177791,0.80448576,67852.0,67851.0,0.2457]
[1717292178211,0.80648576,67852.0,67851.0,0.2467]
[1717292178456,0.80448576,67852.0,67851.0,0.2447]
[1717292179095,0.80148576,67852.0,67851.0,0.2437]
[1717292179361,0.736897,67852.0,67851.0,0.33632011]
[1717292179717,0.80210264,67852.0,67851.0,0.33632011]
[1717292180340,0.736897,67852.0,67851.0,0.33632011]
[1717292180677,0.737897,67852.0,67851.0,0.33632011]
[1717292181027,0.744897,67852.0,67851.0,0.33832011]
[1717292181630,0.742897,67852.0,67851.0,0.33632011]
[1717292181827,0.743897,67852.0,67851.0,0.33732011]
[1717292182422,0.743897,67852.0,67851.0,0.34182011]
[1717292182860,0.449138,67852.0,67851.0,0.34182011]
[1717292183358,0.449138,67852.0,67851.0,0.40562011]
[1717292185289,0.45852084,67852.0,67851.0,0.40562011]
[1717292189809,0.45852084,67852.0,67851.0,0.34182011]
[1717292190219,0.45852084,67852.0,67851.0,0.40562011]
[1717292192000,0.45852084,67852.0,67851.0,0.40112011]
[1717292192206,0.45852084,67852.0,67851.0,0.40562011]
[1717292197314,0.45852084,67852.0,67851.0,0.40112011]
[1717292197516,0.45852084,67852.0,67851.0,0.40562011]
[1717292201570,0.45852084,67852.0,67851.0,0.34182011]
[1717292203404,0.45852084,67852.0,67851.0,0.33732011]
[1717292203604,0.45852084,67852.0,67851.0,0.34182011]
[1717292210991,0.45852084,67852.0,67851.0,0.33732011]
[1717292211711,0.45852084,67852.0,67851.0,0.34182011]
[1717292217587,0.449138,67852.0,67851.0,0.34182011]
[1717292217775,0.45851888,67852.0,67851.0,0.34182011]
[1717292220929,0.45851888,67852.0,67851.0,0.33732011]
[1717292221415,0.45851888,67852.0,67851.0,0.33645011]
[1717292223996,0.45851888,67852.0,67851.0,0.34095011]
[1717292226610,0.517959,67852.0,67851.0,0.34095011]
[1717292227003,0.45851888,67852.0,67851.0,0.34095011]
[1717292231312,0.45851888,67852.0,67851.0,0.33645011]
[1717292232135,0.45851888,67852.0,67851.0,0.34095011]
[1717292237703,0.45851888,67852.0,67851.0,0.33645011]
[1717292237910,0.45851888,67852.0,67851.0,0.34095011]
[1717292238124,0.45851888,67852.0,67851.0,0.33645011]
[1717292238323,0.45851888,67852.0,67851.0,0.34095011]
[1717292239316,0.45851888,67852.0,67851.0,0.33645011]
[1717292241852,0.45851888,67852.0,67851.0,0.25632011]
[1717292245875,0.45851888,67852.0,67851.0,0.26082011]
[1717292249496,0.45851888,67852.0,67851.0,0.26082011]
[1717292249745,0.45851888,67852.0,67851.0,0.34272011]
[1717292249955,0.01638088,67852.0,67851.0,0.48849802]
[1717292250389,0.01638088,67852.0,67851.0,0.53275333]
[1717292250606,0.007,67852.0,67851.0,0.53275333]
[1717292251161,0.001,67852.0,67851.0,0.53275333]
[1717292251428,0.005,67852.0,67851.0,0.48949802]
[1717292251624,0.005,67852.0,67851.0,0.48849802]
[1717292252326,0.004,67852.0,67851.0,0.48749802]
[1717292252528,0.012,67852.0,67851.0,0.49149802]
[1717292253160,0.012,67852.0,67851.0,0.48849802]
[1717292253161,0.008,67852.0,67851.0,0.48849802]
[1717292253406,0.012,67852.0,67851.0,0.49249802]
[1717292253885,0.004,67852.0,67851.0,0.49149802]
[1717292254083,0.004,67852.0,67851.0,0.48849802]
[1717292254281,0.004,67852.0,67851.0,0.48749802]
[1717292254742,0.008,67852.0,67851.0,0.48849802]
[1717292254961,0.147378,67853.0,67851.0,0.48749802]
[1717292255193,0.147378,67853.0,67852.0,0.49049802]
[1717292256528,0.151378,67853.0,67852.0,0.49049802]
[1717292256994,0.147378,67853.0,67852.0,0.49049802]
[1717292257175,0.151378,67853.0,67852.0,0.49349802]
[1717292258540,0.155378,67853.0,67852.0,0.49449802]
[1717292261042,0.16536982,67853.0,67852.0,0.49449802]
[1717292262518,0.16536982,67853.0,67852.0,0.51236721]
[1717292264996,0.16536982,67853.0,67852.0,0.60078721]
[1717292265355,0.155378,67853.0,67852.0,0.60078721]
[1717292274470,0.155378,67853.0,67852.0,0.35318721]
[1717292274670,0.16536632,67853.0,67852.0,0.35318721]
[1717292295343,0.01798832,67853.0,67852.0,0.35318721]
[1717292295550,0.01798832,67853.0,67852.0,0.58888721]
[1717292295752,0.008,67853.0,67852.0,0.63308356]
[1717292295877,0.008,67853.0,67852.0,0.58888721]
[1717292296081,0.008,67853.0,67852.0,0.65518174]
[1717292296492,0.008,67853.0,67852.0,0.58888721]
[1717292296691,0.008,67853.0,67852.0,0.98194631]
[1717292297503,0.008,67853.0,67852.0,0.9155928]
[1717292298405,0.008,67853.0,67852.0,0.98193591]
[1717292300197,0.008,67853.0,67852.0,0.98192576]
[1717292300418,0.008,67853.0,67852.0,0.65522666]
[1717292301443,0.008,67853.0,67852.0,0.58888721]
[1717292304438,0.008,67853.0,67852.0,0.35318721]
[1717292304635,0.008,67853.0,67852.0,0.39740893]
[1717292305036,0.01798848,67853.0,67852.0,0.39740893]
[1717292310422,0.01798848,67853.0,67852.0,0.39740775]
[1717292310669,0.01798848,67853.0,67852.0,0.55034458]
[1717292310840,0.008,67853.0,67852.0,0.55034458]
[1717292321681,0.008,67853.0,67852.0,0.62681301]
[1717292322112,0.008,67853.0,67852.0,0.62681303]
[1717292323923,0.008,67853.0,67852.0,0.62681245]
[1717292324906,0.237677,67853.0,67852.0,0.62681245]
[1717292325151,0.24765937,67853.0,67852.0,0.50612406]
[1717292325360,0.24765937,67853.0,67852.0,0.62681309]
[1717292325994,0.16535937,67853.0,67852.0,0.62681309]
[1717292326164,0.39815937,67853.0,67852.0,0.62681309]
[1717292326367,0.388177,67853.0,67852.0,0.62681309]
[1717292326572,0.39816143,67853.0,67852.0,0.62681309]
[1717292327864,0.24766143,67853.0,67852.0,0.62681309]
[1717292332825,0.16536143,67853.0,67852.0,0.62681309]
[1717292333187,0.155377,67853.0,67852.0,0.62681309]
[1717292333410,0.16535823,67853.0,67852.0,0.62681311]
[1717292339111,0.155377,67853.0,67852.0,0.62681311]
[1717292339306,0.155377,67853.0,67852.0,0.5825925]
[1717292340610,0.008,67853.0,67852.0,0.5825925]
[1717292340817,0.008,67853.0,67852.0,1.14199087]
[1717292341038,0.008,67853.0,67852.0,1.33043209]
[1717292341416,0.008,67853.0,67852.0,1.24199087]
[1717292341796,0.008,67853.0,67852.0,1.33046142]
[1717292345227,0.008,67853.0,67852.0,1.23046142]
[1717292346002,0.008,67853.0,67852.0,1.14199087]
[1717292347611,0.008,67853.0,67852.0,0.98905402]
[1717292347836,0.008,67853.0,67852.0,1.14198198]
[1717292349371,0.008,67853.0,67852.0,1.23041704]
[1717292351793,0.008,67853.0,67852.0,0.99771704]
[1717292351984,0.008,67853.0,67852.0,0.97560298]
[1717292352359,0.008,67853.0,67852.0,0.64890461]
[1717292352766,0.01798358,67853.0,67852.0,0.64890461]
[1717292353144,0.01798358,67853.0,67852.0,0.97559967]
[1717292355660,0.008,67853.0,67852.0,0.97559967]
[1717292357807,0.0852,67853.0,67852.0,0.97559967]
[1717292360507,0.0852,67853.0,67852.0,0.97559625]
[1717292360710,0.008,67853.0,67852.0,0.97559625]
[1717292360875,0.397477,67853.0,67852.0,0.97559625]
[1717292361069,0.397477,67853.0,67852.0,0.62679448]
[1717292361300,0.40746077,67853.0,67852.0,0.62679448]
[1717292361528,0.397477,67853.0,67852.0,0.50611517]
[1717292361741,0.40746267,67853.0,67852.0,0.35318721]
[1717292361944,0.40746267,67853.0,67852.0,0.50612557]
[1717292362147,0.397477,67853.0,67852.0,0.50612557]
[1717292362393,0.40746077,67853.0,67852.0,0.50612557]
[1717292368975,0.40746077,67853.0,67852.0,0.50162557]
[1717292369153,0.397477,67853.0,67852.0,0.50612557]
[1717292369560,0.40745741,67853.0,67852.0,0.50612557]
[1717292375328,0.24255741,67853.0,67852.0,0.50612557]
[1717292376142,0.16535741,67853.0,67852.0,0.50612557]
[1717292376340,0.01798041,67853.0,67852.0,0.50612557]
[1717292376457,0.01798041,67853.0,67852.0,0.74352557]
[1717292376653,0.008,67853.0,67852.0,0.74352557]
[1717292377659,0.008,67853.0,67852.0,0.50612557]
[1717292377886,0.008,67853.0,67852.0,0.74352557]
[1717292381492,0.008,67853.0,67852.0,0.50612557]
[1717292385626,0.008,67853.0,67852.0,0.35318721]
[1717292385826,0.008,67853.0,67852.0,0.50612417]
[1717292387830,0.01749249,67853.0,67852.0,0.50612417]
[1717292388038,0.0075111,67853.0,67852.0,0.50612417]
[1717292388239,0.01749249,67853.0,67852.0,0.50612417]
[1717292388639,0.0075111,67853.0,67852.0,0.50612417]
[1717292388868,0.01749249,67853.0,67852.0,0.50612417]
[1717292389073,0.0075111,67853.0,67852.0,0.50612417]
[1717292389295,0.24116949,67853.0,67852.0,0.50612417]
[1717292389488,0.2311881,67853.0,67852.0,0.50612417]
[1717292389809,0.24116767,67853.0,67852.0,0.50612417]
[1717292392257,0.16486767,67853.0,67852.0,0.50612417]
[1717292393042,0.16486767,67853.0,67852.0,0.50612386]
[1717292394271,0.16486767,67853.0,67852.0,0.55033313]
[1717292394776,0.1548881,67853.0,67852.0,0.55033313]
[1717292395189,0.16486726,67853.0,67852.0,0.55033313]
[1717292400669,0.16486726,67853.0,67852.0,0.55034407]
[1717292401064,0.1548881,67853.0,67852.0,0.55034407]
[1717292402410,0.1548881,67853.0,67852.0,0.62681242]
[1717292403272,0.1548881,67853.0,67852.0,0.55034407]
[1717292403435,0.1548881,67853.0,67852.0,0.62681242]
[1717292404208,0.1548881,67853.0,67852.0,0.58259221]
[1717292408073,0.1548881,67853.0,67852.0,0.55035444]
[1717292408452,0.3109881,67853.0,67852.0,0.55035444]
[1717292408628,0.40026726,67853.0,67852.0,0.55035444]
[1717292410065,0.40026726,67853.0,67852.0,0.55035592]
[1717292410300,0.3902881,67853.0,67852.0,0.55035592]
[1717292410677,0.40026907,67853.0,67852.0,0.39741927]
[1717292410907,0.40026907,67853.0,67852.0,0.55035939]
[1717292414829,0.3902881,67853.0,67852.0,0.55035939]
[1717292415040,0.4002667,67853.0,67852.0,0.55035939]
[1717292415725,0.4002667,67853.0,67852.0,0.39741927]